fUST/lending_fUST_20260115
["ID","MTS","AMOUNT","RATE_DAILY","PERIOD"]
[401983761,1768435851746,-10000.0,0.00025254,2]
[401983762,1768435851755,-10000.0,0.00025254,2]
[401983763,1768435851765,-10000.0,0.00025254,2]
[401983764,1768435851775,-151.0,0.00025255,7]
[401983765,1768435851786,-3000.0,0.0002526,7]
[401983766,1768435851796,-200.0,0.00025266,2]
[401983767,1768435851806,-813.50644317,0.00025293,20]
[401983768,1768435851816,-223.89,0.000253,7]
[401983769,1768435851825,-588.909417,0.00025342,2]
[401983770,1768435851835,-500.0,0.00025343,2]
[401983771,1768435851845,-3148.0,0.0002535,2]
[401983772,1768435851855,-29951.84,0.000254,2]
[401983773,1768435851867,-4427.0,0.0002543,2]
[401983774,1768435851877,-2953.11393828,0.00025474,2]
[401983775,1768435851887,-500.0,0.0002548,2]
[401983776,1768435851897,-151.0,0.0002548,7]
[401983777,1768435851909,-151.0,0.0002548,7]
[401983778,1768435851918,-151.0,0.00025491,4]
[401983779,1768435851929,-168.3888056,0.00025491,4]
[401983780,1768435851939,-151.0,0.00025491,4]
[401983781,1768435851948,-174.61919141,0.00025491,4]
[401983782,1768435851958,-151.0,0.00025491,4]
[401983783,1768435851968,-181.08010149,0.00025491,4]
[401983784,1768435851978,-151.0,0.00025491,4]
[401983785,1768435851987,-187.78006525,0.00025491,4]
[401983786,1768435851997,-151.0,0.00025491,4]
[401983787,1768435852007,-194.72792766,0.00025491,4]
[401983788,1768435852016,-151.0,0.00025491,4]
[401983789,1768435852025,-201.93286099,0.00025491,4]
[401983790,1768435852035,-151.0,0.00025491,4]
[401983791,1768435852043,-209.40437684,0.00025491,4]
[401983792,1768435852053,-151.0,0.00025491,4]
[401983793,1768435852062,-217.15233878,0.00025491,4]
[401983794,1768435852071,-151.0,0.00025491,4]
[401983795,1768435852081,-225.18697532,0.00025491,4]
[401983796,1768435852091,-151.0,0.00025491,4]
[401983797,1768435852100,-233.51889341,0.00025491,4]
[401983798,1768435852112,-151.0,0.00025491,4]
[401983799,1768435852121,-242.15909246,0.00025491,4]
[401983800,1768435852131,-151.0,0.00025491,4]
[401983801,1768435852141,-251.11897888,0.00025491,4]
[401983802,1768435852151,-245.0,0.00025491,4]
[401983803,1768435852161,-260.4103811,0.00025491,4]
[401983804,1768435852172,-270.0455652,0.00025491,4]
[401983805,1768435852182,-280.03725112,0.00025491,4]
[401983806,1768435852191,-290.39862941,0.00025491,4]
[401983807,1768435852201,-301.1433787,0.00025491,4]
[401983808,1768435852211,-250.0,0.00025491,4]
[401983809,1768435852220,-151.0,0.00025491,4]
[401983810,1768435852229,-297.43886801,0.00025491,4]
[401983811,1768435852239,-500.0,0.00025491,4]
[401983812,1768435852249,-500.0,0.00025491,4]
[401983813,1768435852258,-151.0,0.00025491,4]
[401983814,1768435852267,-500.0,0.00025491,4]
[401983815,1768435852277,-151.0,0.00025491,4]
[401983816,1768435852287,-500.0,0.00025491,4]
[401983817,1768435852296,-250.0,0.00025491,4]
[401983818,1768435852306,-151.0,0.00025491,4]
[401983819,1768435852315,-500.0,0.00025491,4]
[401983820,1768435852324,-250.0,0.00025491,4]
[401983821,1768435852334,-151.0,0.00025491,4]
[401983822,1768435852346,-250.0,0.00025491,4]
[401983823,1768435852356,-500.0,0.00025491,4]
[401983824,1768435852366,-151.0,0.00025491,4]
[401983825,1768435852375,-250.0,0.00025491,4]
[401983826,1768435852385,-151.0,0.00025491,4]
[401983827,1768435852395,-500.0,0.00025491,4]
[401983828,1768435852404,-250.0,0.00025491,4]
[401983829,1768435852414,-151.0,0.00025491,4]
[401983830,1768435852424,-500.0,0.00025491,4]
[401983831,1768435852433,-151.0,0.00025491,4]
[401983832,1768435852443,-500.0,0.00025491,4]
[401983833,1768435852452,-151.0,0.00025491,4]
[401983834,1768435852461,-500.0,0.00025491,4]
[401983835,1768435852471,-163.79209166,0.00025491,4]
[401983836,1768435852480,-500.0,0.00025491,4]
[401983837,1768435852489,-168.3888056,0.00025491,4]
[401983838,1768435852499,-500.0,0.00025491,4]
[401983839,1768435852510,-174.61919141,0.00025491,4]
[401983840,1768435852520,-500.0,0.00025491,4]
[401983841,1768435852531,-181.08010149,0.00025491,4]
[401983842,1768435852542,-500.0,0.00025491,4]
[401983843,1768435852551,-187.78006525,0.00025491,4]
[401983844,1768435852560,-250.0,0.00025491,4]
[401983845,1768435852570,-500.0,0.00025491,4]
[401983846,1768435852581,-194.72792766,0.00025491,4]
[401983847,1768435852592,-250.0,0.00025491,4]
[401983848,1768435852603,-500.0,0.00025491,4]
[401983849,1768435852614,-201.93286099,0.00025491,4]
[401983850,1768435852624,-294.03317915,0.00025491,4]
[401983851,1768435852635,-500.0,0.00025491,4]
[401983852,1768435852645,-209.40437684,0.00025491,4]
[401983853,1768435852657,-217.15233878,0.00025491,4]
[401983854,1768435852666,-225.18697532,0.00025491,4]
[401983855,1768435852676,-233.51889341,0.00025491,4]
[401983856,1768435852686,-242.15909246,0.00025491,4]
[401983857,1768435852696,-265.87708981,0.00025491,4]
[401983858,1768435852706,-250.0,0.00025491,4]
[401983859,1768435852718,-250.0,0.00025491,4]
[401983860,1768435852727,-255.9181721,0.00025491,4]
[401983861,1768435852738,-461.67526834,0.00025491,4]
[401983862,1768435852748,-478.75725327,0.00025491,4]
[401983863,1768435852758,-496.47127164,0.00025491,4]
[401983864,1768435852768,-514.84070869,0.00025491,4]
[401983865,1768435852777,-533.88981491,0.00025491,4]
[401983866,1768435852787,-2230.315306,0.00025491,4]
[401983867,1768435852797,-553.64373807,0.00025491,4]
[401983868,1768435852807,-2312.83697232,0.00025491,4]
[401983869,1768435852817,-574.12855637,0.00025491,4]
[401983870,1768435852827,-2398.4119403,0.00025491,4]
[401983871,1768435852836,-595.37131296,0.00025491,4]
[401983872,1768435852847,-2487.15318209,0.00025491,4]
[401983873,1768435852856,-617.40005154,0.00025491,4]
[401983874,1768435852866,-409.49717047,0.00025491,4]
[401983875,1768435852876,-640.24385345,0.00025491,4]
[401983876,1768435852885,-160.0,0.00025491,4]
[401983877,1768435852895,-663.93287602,0.00025491,4]
[401983878,1768435852904,-160.0,0.00025491,4]
[401983879,1768435852914,-688.49839244,0.00025491,4]
[401983880,1768435852924,-164.08273023,0.00025491,4]
[401983881,1768435852934,-713.97283296,0.00025491,4]
[401983882,1768435852945,-844.69282827,0.00025491,4]
[401983883,1768435852955,-2953.11393833,0.00025609,2]
[401983884,1768435852964,-31110.0,0.00025615,2]
[401983885,1768435852974,-500.0,0.00025617,2]
[401983886,1768435852984,-239.075768,0.00025676,7]
[401983887,1768435852994,-241.624694,0.00025676,7]
[401983888,1768435853005,-241.624694,0.00025676,7]
[401983889,1768435853015,-241.624694,0.00025676,7]
[401983890,1768435853025,-241.624694,0.00025676,7]
[401983891,1768435853034,-191.596972,0.00025676,7]
[401983892,1768435853046,-191.596972,0.00025676,7]
[401983893,1768435853055,-191.596972,0.00025676,7]
[401983894,1768435853065,-191.596972,0.00025676,7]
[401983895,1768435853076,-167.77,0.000257,7]
[401983896,1768435853086,-100345.9900791,0.00025712,2]
[401983897,1768435853096,-2552.9177755,0.00025712,2]
[401983898,1768435853105,-269.235719,0.00025712,7]
[401983899,1768435853115,-643.609469,0.00025712,7]
[401983900,1768435853127,-643.609469,0.00025712,7]
[401983901,1768435853137,-643.609469,0.00025712,7]
[401983902,1768435853146,-643.609469,0.00025712,7]
[401983903,1768435853155,-154.230394,0.00025712,7]
[401983904,1768435853165,-151.0,0.00025712,7]
[401983905,1768435853175,-151.0,0.00025712,7]
[401983906,1768435853184,-224.069012,0.00025712,7]
[401983907,1768435853194,-224.069012,0.00025712,7]
[401983908,1768435853203,-224.069012,0.00025712,7]
[401983909,1768435853213,-224.069012,0.00025712,7]
[401983910,1768435853222,-151.0,0.00025712,7]
[401983911,1768435853232,-253.260764,0.00025712,7]
[401983912,1768435853241,-253.260764,0.00025712,7]
[401983913,1768435853250,-253.260764,0.00025712,7]
[401983914,1768435853260,-253.260764,0.00025712,7]
[401983915,1768435853269,-43901.3706595,0.00025712,2]
[401983916,1768435853280,-910.867725,0.00025712,7]
[401983917,1768435853290,-910.867725,0.00025712,7]
[401983918,1768435853300,-910.867725,0.00025712,7]
[401983919,1768435853309,-910.867725,0.00025712,7]
[401983920,1768435853319,-235.000068,0.00025712,7]
[401983921,1768435853328,-151.0,0.00025712,7]
[401983922,1768435853338,-638.2294439,0.00025712,2]
[401983923,1768435853351,-206.655593,0.00025712,7]
[401983924,1768435853361,-206.655593,0.00025712,7]
[401983925,1768435853370,-206.655593,0.00025712,7]
[401983926,1768435853380,-206.655593,0.00025712,7]
[401983927,1768435853391,-151.0,0.00025712,7]
[401983928,1768435853400,-151.0,0.00025712,7]
[401983929,1768435853409,-282.150442,0.00025712,7]
[401983930,1768435853420,-282.150442,0.00025712,7]
[401983931,1768435853429,-282.150442,0.00025712,7]
[401983932,1768435853440,-282.150442,0.00025712,7]
[401983933,1768435853449,-151.0,0.00025712,7]
[401983934,1768435853458,-151.0,0.00025712,7]
[401983935,1768435853468,-151.0,0.00025712,7]
[401983936,1768435853478,-151.0,0.00025712,7]
[401983937,1768435853487,-252.547119,0.00025712,7]
[401983938,1768435853497,-151.0,0.00025712,7]
[401983939,1768435853508,-151.0,0.00025712,7]
[401983940,1768435853518,-151.0,0.00025712,7]
[401983941,1768435853528,-207.237772,0.00025712,7]
[401983942,1768435853538,-207.237772,0.00025712,7]
[401983943,1768435853548,-207.237772,0.00025712,7]
[401983944,1768435853559,-207.237772,0.00025712,7]
[401983945,1768435853568,-369.003999,0.00025712,7]
[401983946,1768435853578,-369.003999,0.00025712,7]
[401983947,1768435853588,-369.003999,0.00025712,7]
[401983948,1768435853598,-369.003999,0.00025712,7]
[401983949,1768435853607,-582.913993,0.00025712,7]
[401983950,1768435853617,-582.913993,0.00025712,7]
[401983951,1768435853626,-582.913993,0.00025712,7]
[401983952,1768435853635,-582.913993,0.00025712,7]
[401983953,1768435853644,-795.987765,0.00025712,7]
[401983954,1768435853653,-795.987765,0.00025712,7]
[401983955,1768435853665,-795.987765,0.00025712,7]
[401983956,1768435853682,-795.987765,0.00025712,7]
[401983957,1768435853699,-593.168376,0.00025712,7]
[401983958,1768435853719,-593.168376,0.00025712,7]
[401983959,1768435853738,-593.168376,0.00025712,7]
[401983960,1768435853757,-593.168376,0.00025712,7]
[401983961,1768435853777,-151.0,0.00025712,7]
[401983962,1768435853796,-151.0,0.00025712,7]
[401983963,1768435853815,-151.0,0.00025712,7]
[401983964,1768435853834,-1770.408967,0.00025712,7]
[401983965,1768435853854,-1770.408967,0.00025712,7]
[401983966,1768435853874,-1770.408967,0.00025712,7]
[401983967,1768435853884,-1770.408967,0.00025712,7]
[401983968,1768435853893,-1498.239018,0.00025712,7]
[401983969,1768435853903,-1498.239018,0.00025712,7]
[401983970,1768435853912,-1498.239018,0.00025712,7]
[401983971,1768435853922,-1498.239018,0.00025712,7]
[401983972,1768435853931,-263.265987,0.00025712,7]
[401983973,1768435853942,-263.265987,0.00025712,7]
[401983974,1768435853952,-263.265987,0.00025712,7]
[401983975,1768435853962,-263.265987,0.00025712,7]
[401983976,1768435853972,-151.0,0.00025712,7]
[401983977,1768435853982,-847.432412,0.00025712,7]
[401983978,1768435853992,-847.432412,0.00025712,7]
[401983979,1768435854001,-847.432412,0.00025712,7]
[401983980,1768435854011,-847.432412,0.00025712,7]
[401983981,1768435854020,-1914.6883316,0.00025712,2]
[401983982,1768435854029,-151.0,0.00025749,7]
[401983983,1768435854038,-350.0,0.00025753,2]
[401983984,1768435854048,-500.0,0.00025754,2]
[401983985,1768435854058,-2381.87,0.000258,7]
[401983986,1768435854067,-3148.0,0.00025859,2]
[401983987,1768435854115,-1000.0,0.00025861,10]
[401983988,1768435854125,-1000.0,0.00025861,10]
[401983989,1768435854134,-579.0,0.00025861,10]
[401983990,1768435854143,-294.0,0.00025862,2]
[401983991,1768435854153,-186.0,0.0002589,7]
[401983992,1768435854163,-500.0,0.00025891,2]
[401983993,1768435854172,-163.0,0.000259,7]
[401983994,1768435854181,-163.0,0.000259,7]
[401983995,1768435854190,-163.0,0.000259,7]
[401983996,1768435854200,-8784.72600196,0.0002593,2]
[401983997,1768435854209,-234.0,0.00025973,14]
[401983998,1768435854218,-896.18087791,0.00026,2]
[401983999,1768435854227,-161.0,0.00026,5]
[401984000,1768435854236,-10000.0,0.00026,2]
[401984001,1768435854246,-1041.66666667,0.00026,3]
[401984002,1768435854255,-5000.0,0.00026,30]
[401984003,1768435854265,-1041.66666667,0.00026,30]
[401984004,1768435854275,-163.0,0.00026,10]
[401984005,1768435854285,-163.0,0.00026,10]
[401984006,1768435854295,-4332.57,0.00026027,2]
[401984007,1768435854304,-500.0,0.00026028,2]
[401984008,1768435854314,-160.0,0.00026031,5]
[401984009,1768435854324,-3146.0,0.00026037,7]
[401984010,1768435854333,-5000.0,0.00026068,2]
[401984011,1768435854343,-363.0,0.00026073,2]
[401984012,1768435854355,-3146.0,0.00026111,2]
[401984013,1768435854364,-3148.0,0.00026133,2]
[401984014,1768435854374,-714.6,0.00026137,2]
[401984015,1768435854382,-813.50644317,0.00026143,21]
[401984016,1768435854391,-194.72949231,0.0002616,2]
[401984017,1768435854401,-32261.07,0.00026163,2]
[401984018,1768435854410,-500.0,0.00026165,2]
[401984019,1768435854419,-3146.0,0.00026198,2]
[401984020,1768435854428,-153.0,0.00026217,2]
[401984021,1768435854437,-602.0059149,0.00026217,2]
[401984022,1768435854446,-153.0,0.00026217,2]
[401984023,1768435854455,-602.0059149,0.00026217,2]
[401984024,1768435854465,-602.0059149,0.00026217,2]
[401984025,1768435854474,-153.0,0.00026217,2]
[401984026,1768435854483,-602.0059149,0.00026217,2]
[401984027,1768435854492,-153.0,0.00026217,2]
[401984028,1768435854501,-40893.3830001,0.00026219,3]
[401984029,1768435854510,-40893.3830001,0.00026219,3]
[401984030,1768435854519,-40893.3830001,0.00026219,3]
[401984031,1768435854527,-2579.54800064,0.00026219,3]
[401984032,1768435854686,-19283.52023384,0.00026219,3]
[401984033,1768435854698,-19030.31476562,0.00026219,3]
[401984034,1768435854708,-301.105307,0.00026219,7]
[401984035,1768435854717,-450.0,0.00026301,2]
[401984036,1768435854726,-500.0,0.00026302,2]
[401984037,1768435854735,-3146.0,0.00026329,2]
[401984038,1768435854744,-3000.0,0.00026356,7]
[401984039,1768435854754,-202.526,0.00026364,2]
[401984040,1768435854763,-189.33101901,0.00026369,63]
[401984041,1768435854773,-1756.50447397,0.00026403,2]
[401984042,1768435854782,-7018.991878,0.00026403,2]
[401984043,1768435854791,-1312.46891644,0.00026403,2]
[401984044,1768435854802,-5244.62579008,0.00026403,2]
[401984045,1768435854811,-589.69745305,0.0002643,5]
[401984046,1768435854820,-500.0,0.00026439,2]
[401984047,1768435854830,-2000.0,0.00026474,7]
[401984048,1768435854840,-3915.7,0.000265,14]
[401984049,1768435854849,-196.5,0.000265,7]
[401984050,1768435854859,-200.858,0.0002652,2]
[401984051,1768435854868,-221.878,0.0002652,2]
[401984052,1768435854877,-232.431,0.0002652,2]
[401984053,1768435854887,-244.039,0.0002652,2]
[401984054,1768435854896,-275.706,0.0002652,2]
[401984055,1768435854906,-261.564,0.0002652,2]
[401984056,1768435854915,-267.537,0.0002652,2]
[401984057,1768435854925,-629.0,0.0002652,2]
[401984058,1768435854934,-1367.0,0.0002652,2]
[401984059,1768435854946,-2147.0,0.0002652,2]
[401984060,1768435854956,-417.0,0.0002652,2]
[401984061,1768435854965,-417.0,0.0002652,2]
[401984062,1768435854975,-772.163,0.0002652,2]
[401984063,1768435854984,-197.967,0.0002652,2]
[401984064,1768435854994,-200.0,0.0002654,14]
[401984065,1768435855003,-160.0,0.0002657,6]
[401984066,1768435855012,-3146.0,0.00026647,2]
[401984067,1768435855022,-3146.0,0.00026663,2]
[401984068,1768435855031,-223.89,0.000267,7]
[401984069,1768435855041,-29951.84,0.000267,2]
[401984070,1768435855050,-1041.66666667,0.000268,3]
[401984071,1768435855059,-2381.87,0.000268,7]
[401984072,1768435855068,-241.624694,0.00026809,7]
[401984073,1768435855078,-241.624694,0.00026809,7]
[401984074,1768435855087,-241.624694,0.00026809,7]
[401984075,1768435855096,-241.624688,0.00026809,7]
[401984076,1768435855105,-191.596972,0.00026809,7]
[401984077,1768435855115,-191.596972,0.00026809,7]
[401984078,1768435855123,-191.596972,0.00026809,7]
[401984079,1768435855133,-191.596979,0.00026809,7]
[401984080,1768435855142,-2599.0,0.00026809,2]
[401984081,1768435855152,-550.0,0.00026849,2]
[401984082,1768435855162,-800.0,0.00026862,2]
[401984083,1768435855171,-800.0,0.0002693,2]
[401984084,1768435855181,-813.50644317,0.00026994,23]
[401984085,1768435855190,-2500.0,0.00027,2]
[401984086,1768435855201,-600.0,0.00027,14]
[401984087,1768435855211,-108725.02373572,0.00027,2]
[401984088,1768435855220,-200.0,0.00027,7]
[401984089,1768435855230,-200.0,0.00027,7]
[401984090,1768435855239,-151.0,0.00027,7]
[401984091,1768435855248,-1041.66666667,0.00027,7]
[401984092,1768435855258,-5000.0,0.00027,30]
[401984093,1768435855267,-151.0,0.00027,7]
[401984094,1768435855276,-643.609469,0.00027,7]
[401984095,1768435855286,-643.609469,0.00027,7]
[401984096,1768435855295,-643.609469,0.00027,7]
[401984097,1768435855305,-643.609465,0.00027,7]
[401984098,1768435855315,-151.0,0.00027,7]
[401984099,1768435855324,-151.0,0.00027,7]
[401984100,1768435855334,-224.069012,0.00027,7]
[401984101,1768435855345,-224.069012,0.00027,7]
[401984102,1768435855357,-224.069012,0.00027,7]
[401984103,1768435855366,-224.069017,0.00027,7]
[401984104,1768435855377,-253.260764,0.00027,7]
[401984105,1768435855387,-253.260764,0.00027,7]
[401984106,1768435855399,-253.260764,0.00027,7]
[401984107,1768435855420,-253.260768,0.00027,7]
[401984108,1768435855445,-910.867725,0.00027,7]
[401984109,1768435855476,-910.867725,0.00027,7]
[401984110,1768435855499,-910.867725,0.00027,7]
[401984111,1768435855521,-910.867719,0.00027,7]
[401984112,1768435855545,-151.0,0.00027,7]
[401984113,1768435855568,-206.655593,0.00027,7]
[401984114,1768435855589,-206.655593,0.00027,7]
[401984115,1768435855608,-206.655593,0.00027,7]
[401984116,1768435855618,-206.655592,0.00027,7]
[401984117,1768435855627,-151.0,0.00027,7]
[401984118,1768435855637,-151.0,0.00027,7]
[401984119,1768435855647,-282.150442,0.00027,7]
[401984120,1768435855656,-282.150442,0.00027,7]
[401984121,1768435855665,-282.150442,0.00027,7]
[401984122,1768435855675,-282.150445,0.00027,7]
[401984123,1768435855684,-151.0,0.00027,7]
[401984124,1768435855695,-151.0,0.00027,7]
[401984125,1768435855705,-151.0,0.00027,7]
[401984126,1768435855715,-151.0,0.00027,7]
[401984127,1768435855724,-151.0,0.00027,7]
[401984128,1768435855734,-151.0,0.00027,7]
[401984129,1768435855744,-207.237772,0.00027,7]
[401984130,1768435855754,-207.237772,0.00027,7]
[401984131,1768435855764,-207.237772,0.00027,7]
[401984132,1768435855774,-207.237781,0.00027,7]
[401984133,1768435855784,-369.003999,0.00027,7]
[401984134,1768435855794,-369.003999,0.00027,7]
[401984135,1768435855804,-369.003999,0.00027,7]
[401984136,1768435855813,-369.00399,0.00027,7]
[401984137,1768435855823,-582.913993,0.00027,7]
[401984138,1768435855832,-582.913993,0.00027,7]
[401984139,1768435855842,-582.913993,0.00027,7]
[401984140,1768435855851,-582.914002,0.00027,7]
[401984141,1768435855862,-795.987765,0.00027,7]
[401984142,1768435855871,-795.987765,0.00027,7]
[401984143,1768435855881,-795.987765,0.00027,7]
[401984144,1768435855891,-795.987771,0.00027,7]
[401984145,1768435855900,-593.168376,0.00027,7]
[401984146,1768435855910,-593.168376,0.00027,7]
[401984147,1768435855919,-593.168376,0.00027,7]
[401984148,1768435855929,-593.168385,0.00027,7]
[401984149,1768435855938,-151.0,0.00027,7]
[401984150,1768435855950,-151.0,0.00027,7]
[401984151,1768435855959,-151.0,0.00027,7]
[401984152,1768435855969,-1770.408967,0.00027,7]
[401984153,1768435855979,-1770.408967,0.00027,7]
[401984154,1768435855989,-1770.408967,0.00027,7]
[401984155,1768435855999,-1770.408958,0.00027,7]
[401984156,1768435856009,-1498.239018,0.00027,7]
[401984157,1768435856019,-1498.239018,0.00027,7]
[401984158,1768435856028,-1498.239018,0.00027,7]
[401984159,1768435856038,-1498.239023,0.00027,7]
[401984160,1768435856049,-778.0,0.00027,2]
[401984161,1768435856059,-263.265987,0.00027,7]
[401984162,1768435856069,-263.265987,0.00027,7]
[401984163,1768435856079,-263.265987,0.00027,7]
[401984164,1768435856089,-263.265979,0.00027,7]
[401984165,1768435856098,-151.0,0.00027,7]
[401984166,1768435856108,-847.432412,0.00027,7]
[401984167,1768435856118,-847.432412,0.00027,7]
[401984168,1768435856128,-847.432412,0.00027,7]
[401984169,1768435856138,-847.432417,0.00027,7]
[401984170,1768435856148,-2603.0,0.00027007,2]
[401984171,1768435856159,-153.0,0.00027038,2]
[401984172,1768435856169,-307.3539656,0.00027038,2]
[401984173,1768435856179,-186.6184142,0.00027038,2]
[401984174,1768435856188,-811.04151295,0.00027039,2]
[401984175,1768435856199,-262.0,0.00027068,14]
[401984176,1768435856209,-160.0,0.00027109,7]
[401984177,1768435856218,-153.0,0.00027123,2]
[401984178,1768435856227,-153.0,0.00027123,2]
[401984179,1768435856237,-153.0,0.00027123,2]
[401984180,1768435856247,-714.6,0.00027137,5]
[401984181,1768435856257,-2000.0,0.00027151,7]
[401984182,1768435856267,-8644.8950733,0.0002716,2]
[401984183,1768435856276,-188.0,0.00027185,7]
[401984184,1768435856287,-40893.3830001,0.00027219,3]
[401984185,1768435856297,-40893.3830001,0.00027219,3]
[401984186,1768435856307,-40893.3830001,0.00027219,3]
[401984187,1768435856317,-2599.0,0.00027221,2]
[401984188,1768435856327,-2599.0,0.00027224,2]
[401984189,1768435856336,-306.0,0.00027276,2]
[401984190,1768435856347,-34.37752803,0.00027316,2]
[401984191,1768435856361,-2565.62247197,0.00027316,2]
[401984192,1768435856371,-800.0,0.00027345,2]
[401984193,1768435856381,-5000.0,0.00027368,2]
[401984194,1768435856391,-394.15965016,0.0002739,7]
[401984195,1768435856401,-187.50320074,0.00027397,3]
[401984196,1768435856411,-630.3589,0.00027397,2]
[401984197,1768435856422,-650.0,0.00027397,5]
[401984198,1768435856432,-300.0,0.00027397,2]
[401984199,1768435856441,-300.0,0.00027397,2]
[401984200,1768435856452,-300.0,0.00027397,2]
[401984201,1768435856462,-300.0,0.00027397,2]
[401984202,1768435856472,-300.0,0.00027397,2]
[401984203,1768435856482,-300.0,0.00027397,2]
[401984204,1768435856493,-300.0,0.00027397,2]
[401984205,1768435856502,-300.0,0.00027397,2]
[401984206,1768435856512,-300.0,0.00027397,2]
[401984207,1768435856521,-300.0,0.00027397,2]
[401984208,1768435856530,-300.0,0.00027397,2]
[401984209,1768435856540,-300.0,0.00027397,2]
[401984210,1768435856549,-300.0,0.00027397,2]
[401984211,1768435856560,-300.0,0.00027397,2]
[401984212,1768435856570,-300.0,0.00027397,2]
[401984213,1768435856579,-300.0,0.00027397,2]
[401984214,1768435856589,-300.0,0.00027397,2]
[401984215,1768435856598,-300.0,0.00027397,2]
[401984216,1768435856608,-300.0,0.00027397,2]
[401984217,1768435856618,-300.0,0.00027397,2]
[401984218,1768435856628,-300.0,0.00027397,2]
[401984219,1768435856638,-300.0,0.00027397,2]
[401984220,1768435856647,-300.0,0.00027397,2]
[401984221,1768435856656,-300.0,0.00027397,2]
[401984222,1768435856666,-300.0,0.00027397,2]
[401984223,1768435856675,-300.0,0.00027397,2]
[401984224,1768435856684,-300.0,0.00027397,2]
[401984225,1768435856694,-300.0,0.00027397,2]
[401984226,1768435856704,-300.0,0.00027397,2]
[401984227,1768435856713,-300.0,0.00027397,2]
[401984228,1768435856723,-300.0,0.00027397,2]
[401984229,1768435856732,-300.0,0.00027397,2]
[401984230,1768435856742,-300.0,0.00027397,2]
[401984231,1768435856751,-300.0,0.00027397,2]
[401984232,1768435856761,-189.74026127,0.00027397,2]
[401984233,1768435856773,-110.25973873,0.00027397,2]
[401984234,1768435856782,-300.0,0.00027397,2]
[401984235,1768435856792,-300.0,0.00027397,2]
[401984236,1768435856802,-300.0,0.00027397,2]
[401984237,1768435856811,-300.0,0.00027397,2]
[401984238,1768435856821,-300.0,0.00027397,2]
[401984239,1768435856830,-300.0,0.00027397,2]
[401984240,1768435856840,-151.0,0.00027397,7]
[401984241,1768435856850,-151.0,0.00027397,7]
[401984242,1768435856859,-151.0,0.00027397,7]
[401984243,1768435856869,-295.309906,0.00027397,7]
[401984244,1768435856878,-390.771557,0.00027397,3]
[401984245,1768435856888,-390.771557,0.00027397,3]
[401984246,1768435856897,-390.771557,0.00027397,3]
[401984247,1768435856907,-390.771557,0.00027397,3]
[401984248,1768435856916,-390.771557,0.00027397,3]
[401984249,1768435856926,-390.771557,0.00027397,3]
[401984250,1768435856935,-390.771557,0.00027397,3]
[401984251,1768435856945,-390.771557,0.00027397,3]
[401984252,1768435856955,-390.771557,0.00027397,3]
[401984253,1768435856965,-390.771557,0.00027397,3]
[401984254,1768435856974,-390.771557,0.00027397,3]
[401984255,1768435856984,-390.771557,0.00027397,3]
[401984256,1768435856993,-390.771557,0.00027397,3]
[401984257,1768435857003,-390.771557,0.00027397,3]
[401984258,1768435857012,-390.771557,0.00027397,3]
[401984259,1768435857022,-390.771557,0.00027397,3]
[401984260,1768435857032,-390.771557,0.00027397,3]